fUSD/lending_fUSD_20260320
["ID","MTS","AMOUNT","RATE_DAILY","PERIOD"]
[408639533,1774036262501,-150.0,0.00017883,2]
[408639534,1774036262526,-5800.0,0.00017883,2]
[408639535,1774036262535,-358.14,0.00017888,2]
[408639536,1774036262545,-1230.43539134,0.0001789,2]
[408639537,1774036262554,-1078.20020024,0.0001789,2]
[408639538,1774036262564,-5800.0,0.00017891,2]
[408639539,1774036262573,-150.0,0.00017897,2]
[408639540,1774036262582,-12792.09135063,0.000179,2]
[408639541,1774036262592,-12792.09135062,0.000179,2]
[408639542,1774036262601,-12792.09135062,0.000179,2]
[408639543,1774036262610,-12792.09135062,0.000179,2]
[408639544,1774036262620,-160.0,0.000179,3]
[408639545,1774036262629,-160.22,0.000179,4]
[408639546,1774036262638,-5800.0,0.000179,2]
[408639547,1774036262647,-445.80048615,0.000179,2]
[408639548,1774036262656,-1677.53,0.000179,2]
[408639549,1774036262666,-5946.68,0.000179,2]
[408639550,1774036262675,-153.05831618,0.000179,2]
[408639551,1774036262685,-1449.27096712,0.000179,2]
[408639552,1774036262694,-873.76244082,0.000179,2]
[408639553,1774036262703,-247.5339924,0.000179,2]
[408639554,1774036262712,-4863.25331547,0.000179,2]
[408639555,1774036262722,-13552.71916013,0.000179,2]
[408639556,1774036262731,-150.0,0.00017949,2]
[408639557,1774036262740,-500.0,0.00017981,7]
[408639558,1774036262749,-500.0,0.00017981,7]
[408639559,1774036262758,-20000.0,0.0001799,2]
[408639560,1774036262768,-6542.49382155,0.00017999,2]
[408639561,1774036262777,-151.0,0.00018,2]
[408639562,1774036262786,-151.0,0.00018,2]
[408639563,1774036262795,-277.24507119,0.00018,2]
[408639564,1774036262805,-199369.48130526,0.00018,2]
[408639565,1774036262814,-1199.139866,0.00018,2]
[408639566,1774036262823,-309.17458133,0.00018,2]
[408639567,1774036262833,-100338.50969687,0.00018,2]
[408639568,1774036262842,-709381.23177175,0.00018,2]
[408639569,1774036262851,-2371260.06281317,0.00018,2]
[408639570,1774036262860,-275850.58678165,0.00018,2]
[408639571,1774036262870,-2522478.47786666,0.00018,2]
[408639572,1774036262879,-812130.85753431,0.00018,2]
[408639573,1774036262888,-500.0,0.00018,2]
[408639574,1774036262898,-500.0,0.00018,2]
[408639575,1774036262908,-500.0,0.00018,2]
[408639576,1774036262918,-500.0,0.00018,2]
[408639577,1774036262929,-500.0,0.00018,2]
[408639578,1774036262939,-500.0,0.00018,2]
[408639579,1774036262948,-500.0,0.00018,2]
[408639580,1774036262957,-500.0,0.00018,2]
[408639581,1774036262968,-500.0,0.00018,2]
[408639582,1774036262977,-500.0,0.00018,2]
[408639583,1774036262986,-500.0,0.00018,2]
[408639584,1774036262995,-500.0,0.00018,2]
[408639585,1774036263005,-500.0,0.00018,2]
[408639586,1774036263014,-500.0,0.00018,2]
[408639587,1774036263023,-500.0,0.00018,2]
[408639588,1774036263031,-500.0,0.00018,2]
[408639589,1774036263040,-500.0,0.00018,2]
[408639590,1774036263050,-500.0,0.00018,2]
[408639591,1774036263061,-152.4,0.00018,2]
[408639592,1774036263070,-9794.36945424,0.00018,2]
[408639593,1774036263079,-10900153.65423199,0.00018,2]
[408639594,1774036263089,-152.35264568,0.00018,2]
[408639595,1774036263098,-200.0,0.00018,2]
[408639596,1774036263108,-151.0,0.00018,2]
[408639597,1774036263117,-151.0,0.00018,2]
[408639598,1774036263126,-162.535368,0.00018,2]
[408639599,1774036263135,-486.51,0.00018024,2]
[408639600,1774036263145,-4559.8832566,0.00018027,2]
[408639601,1774036263154,-1351.0880513,0.00018027,2]
[408639602,1774036263163,-1500.0,0.00018068,2]
[408639603,1774036263172,-151.0,0.00018082,2]
[408639604,1774036263181,-500.0,0.00018096,7]
[408639605,1774036263190,-341.2155,0.000181,2]
[408639606,1774036263199,-340.94146921,0.0001815,30]
[408639607,1774036263209,-3150.95,0.00018172,2]
[408639608,1774036263218,-179.16,0.00018248,2]
[408639609,1774036263227,-500.0,0.00018255,7]
[408639610,1774036263236,-500.0,0.00018255,7]
[408639611,1774036263245,-224.89,0.000183,13]
[408639612,1774036263255,-220.44,0.000183,2]
[408639613,1774036263264,-42344.06,0.000183,2]
[408639614,1774036263274,-2983.69,0.000183,2]
[408639615,1774036263283,-151.0,0.00018356,2]
[408639616,1774036263291,-152.0,0.00018408,4]
[408639617,1774036263300,-511.89009582,0.0001841,2]
[408639618,1774036263309,-500.0,0.0001841,2]
[408639619,1774036263319,-500.0,0.0001841,2]
[408639620,1774036263328,-500.0,0.0001841,2]
[408639621,1774036263337,-500.0,0.0001841,2]
[408639622,1774036263346,-655.12336036,0.0001841,2]
[408639623,1774036263355,-700.0,0.0001841,2]
[408639624,1774036263365,-700.0,0.0001841,2]
[408639625,1774036263374,-700.0,0.0001841,2]
[408639626,1774036263383,-643.68090311,0.0001841,2]
[408639627,1774036263393,-700.0,0.0001841,2]
[408639628,1774036263403,-700.0,0.0001841,2]
[408639629,1774036263412,-615.78085113,0.0001841,2]
[408639630,1774036263422,-700.0,0.0001841,2]
[408639631,1774036263431,-700.0,0.0001841,2]
[408639632,1774036263441,-700.0,0.0001841,2]
[408639633,1774036263451,-700.0,0.0001841,2]
[408639634,1774036263460,-700.0,0.0001841,2]
[408639635,1774036263470,-508.23663106,0.0001841,2]
[408639636,1774036263479,-700.0,0.0001841,2]
[408639637,1774036263488,-700.0,0.0001841,2]
[408639638,1774036263497,-507.07585258,0.0001841,2]
[408639639,1774036263509,-700.0,0.0001841,2]
[408639640,1774036263518,-700.0,0.0001841,2]
[408639641,1774036263528,-700.0,0.0001841,2]
[408639642,1774036263537,-700.0,0.0001841,2]
[408639643,1774036263546,-700.0,0.0001841,2]
[408639644,1774036263555,-800.0,0.0001841,2]
[408639645,1774036263565,-1500.0,0.0001841,2]
[408639646,1774036263574,-700.0,0.0001841,2]
[408639647,1774036263583,-1307.14986056,0.0001841,2]
[408639648,1774036263592,-1500.0,0.0001841,2]
[408639649,1774036263601,-800.0,0.0001841,2]
[408639650,1774036263610,-700.0,0.0001841,2]
[408639651,1774036263620,-1500.0,0.0001841,2]
[408639652,1774036263629,-800.0,0.0001841,2]
[408639653,1774036263638,-700.0,0.0001841,2]
[408639654,1774036263647,-1500.0,0.0001841,2]
[408639655,1774036263656,-800.0,0.0001841,2]
[408639656,1774036263665,-500.0,0.0001841,2]
[408639657,1774036263675,-700.0,0.0001841,2]
[408639658,1774036263684,-700.0,0.0001841,2]
[408639659,1774036263693,-1500.0,0.0001841,2]
[408639660,1774036263702,-800.0,0.0001841,2]
[408639661,1774036263711,-1100.0,0.0001841,2]
[408639662,1774036263720,-700.0,0.0001841,2]
[408639663,1774036263729,-700.0,0.0001841,2]
[408639664,1774036263739,-1500.0,0.0001841,2]
[408639665,1774036263747,-500.0,0.0001841,2]
[408639666,1774036263757,-800.0,0.0001841,2]
[408639667,1774036263766,-1400.0,0.0001841,2]
[408639668,1774036263776,-1100.0,0.0001841,2]
[408639669,1774036263785,-700.0,0.0001841,2]
[408639670,1774036263795,-700.0,0.0001841,2]
[408639671,1774036263805,-1500.0,0.0001841,2]
[408639672,1774036263814,-500.0,0.0001841,2]
[408639673,1774036263824,-800.0,0.0001841,2]
[408639674,1774036263833,-663.61495283,0.0001841,2]
[408639675,1774036263842,-1400.0,0.0001841,2]
[408639676,1774036263851,-1100.0,0.0001841,2]
[408639677,1774036263860,-700.0,0.0001841,2]
[408639678,1774036263872,-700.0,0.0001841,2]
[408639679,1774036263882,-1500.0,0.0001841,2]
[408639680,1774036263892,-500.0,0.0001841,2]
[408639681,1774036263901,-800.0,0.0001841,2]
[408639682,1774036263911,-1100.0,0.0001841,2]
[408639683,1774036263919,-1400.0,0.0001841,2]
[408639684,1774036263929,-700.0,0.0001841,2]
[408639685,1774036263938,-700.0,0.0001841,2]
[408639686,1774036263947,-1500.0,0.0001841,2]
[408639687,1774036263957,-500.0,0.0001841,2]
[408639688,1774036263966,-500.0,0.0001841,2]
[408639689,1774036263976,-800.0,0.0001841,2]
[408639690,1774036263985,-1100.0,0.0001841,2]
[408639691,1774036263995,-700.0,0.0001841,2]
[408639692,1774036264004,-1400.0,0.0001841,2]
[408639693,1774036264013,-1500.0,0.0001841,2]
[408639694,1774036264023,-500.0,0.0001841,2]
[408639695,1774036264032,-500.0,0.0001841,2]
[408639696,1774036264041,-800.0,0.0001841,2]
[408639697,1774036264051,-1100.0,0.0001841,2]
[408639698,1774036264060,-700.0,0.0001841,2]
[408639699,1774036264069,-1400.0,0.0001841,2]
[408639700,1774036264079,-1002.08855739,0.0001841,2]
[408639701,1774036264089,-1500.0,0.0001841,2]
[408639702,1774036264097,-500.0,0.0001841,2]
[408639703,1774036264107,-500.0,0.0001841,2]
[408639704,1774036264116,-800.0,0.0001841,2]
[408639705,1774036264125,-1100.0,0.0001841,2]
[408639706,1774036264134,-700.0,0.0001841,2]
[408639707,1774036264143,-1400.0,0.0001841,2]
[408639708,1774036264153,-500.0,0.0001841,2]
[408639709,1774036264162,-1500.0,0.0001841,2]
[408639710,1774036264171,-500.0,0.0001841,2]
[408639711,1774036264179,-800.0,0.0001841,2]
[408639712,1774036264189,-1100.0,0.0001841,2]
[408639713,1774036264198,-1400.0,0.0001841,2]
[408639714,1774036264207,-700.0,0.0001841,2]
[408639715,1774036264216,-520.27479962,0.0001841,2]
[408639716,1774036264226,-1500.0,0.0001841,2]
[408639717,1774036264235,-500.0,0.0001841,2]
[408639718,1774036264244,-800.0,0.0001841,2]
[408639719,1774036264254,-1100.0,0.0001841,2]
[408639720,1774036264263,-1400.0,0.0001841,2]
[408639721,1774036264272,-700.0,0.0001841,2]
[408639722,1774036264281,-500.0,0.0001841,2]
[408639723,1774036264292,-2709.91582807,0.0001841,2]
[408639724,1774036264301,-901.52291406,0.0001841,2]
[408639725,1774036264310,-1100.0,0.0001841,2]
[408639726,1774036264319,-1400.0,0.0001841,2]
[408639727,1774036264328,-700.0,0.0001841,2]
[408639728,1774036264338,-500.0,0.0001841,2]
[408639729,1774036264347,-1100.0,0.0001841,2]
[408639730,1774036264356,-1400.0,0.0001841,2]
[408639731,1774036264366,-1286.09863469,0.0001841,2]
[408639732,1774036264375,-929.94569958,0.0001841,2]
[408639733,1774036264384,-1100.0,0.0001841,2]
[408639734,1774036264393,-1400.0,0.0001841,2]
[408639735,1774036264403,-1629.31996774,0.0001841,2]
[408639736,1774036264412,-1400.0,0.0001841,2]
[408639737,1774036264421,-900.0,0.0001841,2]
[408639738,1774036264430,-1400.0,0.0001841,2]
[408639739,1774036264439,-900.0,0.0001841,2]
[408639740,1774036264448,-1496.38597464,0.0001841,2]
[408639741,1774036264457,-900.0,0.0001841,2]
[408639742,1774036264469,-900.0,0.0001841,2]
[408639743,1774036264479,-900.0,0.0001841,2]
[408639744,1774036264488,-900.0,0.0001841,2]
[408639745,1774036264498,-900.0,0.0001841,2]
[408639746,1774036264510,-900.0,0.0001841,2]
[408639747,1774036264519,-900.0,0.0001841,2]
[408639748,1774036264528,-900.0,0.0001841,2]
[408639749,1774036264537,-900.0,0.0001841,2]
[408639750,1774036264547,-900.0,0.0001841,2]
[408639751,1774036264558,-900.0,0.0001841,2]
[408639752,1774036264567,-950.81326261,0.0001841,2]
[408639753,1774036264577,-500.0,0.0001841,2]
[408639754,1774036264587,-500.0,0.0001841,2]
[408639755,1774036264596,-500.0,0.0001841,2]
[408639756,1774036264605,-500.0,0.0001841,2]
[408639757,1774036264615,-500.0,0.0001841,2]
[408639758,1774036264624,-646.86307729,0.0001841,2]
[408639759,1774036264634,-897.51496323,0.0001841,2]
[408639760,1774036264644,-503.0,0.00018431,6]
[408639761,1774036264653,-1017.4474813,0.0001848,2]
[408639762,1774036264663,-301.4684932,0.0001848,2]
[408639763,1774036264673,-2368.14,0.000185,2]
[408639764,1774036264682,-500.0,0.00018529,7]
[408639765,1774036264691,-712.59,0.00018529,7]
[408639766,1774036264699,-2000.0,0.00018616,2]
[408639767,1774036264719,-151.0,0.0001863,2]
[408639768,1774036264731,-500.0,0.00018803,7]
[408639769,1774036264741,-4353.52,0.000189,2]
[408639770,1774036264751,-151.0,0.00018904,2]
[408639771,1774036264762,-1600.0,0.00018904,2]
[408639772,1774036264771,-800.0,0.00018918,7]
[408639773,1774036264782,-500.0,0.00018918,7]
[408639774,1774036264792,-23181.27166468,0.00019,2]
[408639775,1774036264802,-285.29708203,0.00019,2]
[408639776,1774036264812,-574.9573189,0.00019,2]
[408639777,1774036264822,-458.81573704,0.00019,2]
[408639778,1774036264832,-350.0,0.00019,2]
[408639779,1774036264842,-500.0,0.00019077,7]
[408639780,1774036264852,-985.50195348,0.00019164,2]
[408639781,1774036264862,-151.0,0.00019178,2]
[408639782,1774036264873,-150.0,0.00019178,2]
[408639783,1774036264883,-150.0,0.00019178,2]
[408639784,1774036264892,-151.96900469,0.00019178,2]
[408639785,1774036264902,-20273.97,0.00019178,2]
[408639786,1774036264912,-151.0,0.00019178,2]
[408639787,1774036264922,-151.0,0.00019178,2]
[408639788,1774036264931,-151.0,0.00019178,2]
[408639789,1774036264941,-151.0,0.00019178,2]
[408639790,1774036264950,-151.0,0.00019178,2]
[408639791,1774036264960,-151.0,0.00019178,2]
[408639792,1774036264970,-151.0,0.00019178,2]
[408639793,1774036264979,-151.0,0.00019178,2]
[408639794,1774036264989,-151.0,0.00019178,2]
[408639795,1774036264999,-151.0,0.00019178,2]
[408639796,1774036265008,-181.299648,0.00019178,2]
[408639797,1774036265018,-151.0,0.00019178,2]
[408639798,1774036265027,-151.0,0.00019178,2]
[408639799,1774036265037,-151.0,0.00019178,2]
[408639800,1774036265046,-163.438716,0.00019178,2]
[408639801,1774036265055,-196.487786,0.00019178,2]
[408639802,1774036265068,-196.487786,0.00019178,2]
[408639803,1774036265078,-196.487786,0.00019178,2]
[408639804,1774036265088,-196.487786,0.00019178,2]
[408639805,1774036265098,-196.487786,0.00019178,2]
[408639806,1774036265108,-196.487786,0.00019178,2]
[408639807,1774036265118,-196.487786,0.00019178,2]
[408639808,1774036265127,-196.487786,0.00019178,2]
[408639809,1774036265137,-196.487786,0.00019178,2]
[408639810,1774036265147,-196.487786,0.00019178,2]
[408639811,1774036265156,-196.487786,0.00019178,2]
[408639812,1774036265166,-196.487786,0.00019178,2]
[408639813,1774036265176,-196.487786,0.00019178,2]
[408639814,1774036265186,-196.487786,0.00019178,2]
[408639815,1774036265195,-196.487786,0.00019178,2]
[408639816,1774036265205,-196.487786,0.00019178,2]
[408639817,1774036265214,-196.487786,0.00019178,2]
[408639818,1774036265224,-196.487786,0.00019178,2]
[408639819,1774036265234,-196.487786,0.00019178,2]
[408639820,1774036265243,-151.0,0.00019178,2]
[408639821,1774036265258,-196.487791,0.00019178,2]
[408639822,1774036265268,-151.0,0.00019178,2]
[408639823,1774036265277,-151.0,0.00019178,2]
[408639824,1774036265287,-151.0,0.00019178,2]
[408639825,1774036265297,-151.0,0.00019178,2]
[408639826,1774036265307,-151.0,0.00019178,2]
[408639827,1774036265317,-151.0,0.00019178,2]
[408639828,1774036265327,-176.138199,0.00019178,2]
[408639829,1774036265336,-2324.637605,0.00019178,2]
[408639830,1774036265346,-2324.637605,0.00019178,2]
[408639831,1774036265356,-2324.637605,0.00019178,2]
[408639832,1774036265365,-2324.637605,0.00019178,2]
[408639833,1774036265375,-2324.637605,0.00019178,2]
[408639834,1774036265385,-2324.637605,0.00019178,2]
[408639835,1774036265395,-2324.637605,0.00019178,2]
[408639836,1774036265404,-2324.637605,0.00019178,2]
[408639837,1774036265414,-2324.637605,0.00019178,2]
[408639838,1774036265425,-2324.637605,0.00019178,2]
[408639839,1774036265434,-2324.637605,0.00019178,2]
[408639840,1774036265448,-2324.637605,0.00019178,2]
[408639841,1774036265457,-2324.637605,0.00019178,2]
[408639842,1774036265467,-2324.637605,0.00019178,2]
[408639843,1774036265477,-2324.637605,0.00019178,2]
[408639844,1774036265487,-2324.637605,0.00019178,2]
[408639845,1774036265496,-2324.637605,0.00019178,2]
[408639846,1774036265508,-2324.637605,0.00019178,2]
[408639847,1774036265528,-2324.637605,0.00019178,2]
[408639848,1774036265544,-2324.637609,0.00019178,2]
[408639849,1774036265559,-150.0,0.00019178,2]
[408639850,1774036265569,-150.0,0.00019178,2]
[408639851,1774036265580,-5946.68,0.000192,2]
[408639852,1774036265590,-200.0,0.00019212,2]
[408639853,1774036265600,-200.0,0.00019212,2]
[408639854,1774036265612,-200.0,0.00019212,2]
[408639855,1774036265634,-200.0,0.00019212,2]
[408639856,1774036265651,-200.0,0.00019212,2]
[408639857,1774036265660,-200.0,0.00019212,2]
[408639858,1774036265670,-314.0,0.00019212,2]
[408639859,1774036265919,-448.7535,0.000193,2]
[408639860,1774036265929,-193.31,0.00019307,2]
[408639861,1774036265939,-2000.0,0.00019309,2]
[408639862,1774036265948,-500.0,0.00019351,7]
[408639863,1774036265957,-1677.53,0.000194,2]
[408639864,1774036265967,-150.0,0.0001945,2]
[408639865,1774036265977,-150.0,0.0001945,2]
[408639866,1774036265987,-150.0,0.0001945,2]
[408639867,1774036266000,-150.0,0.0001945,2]
[408639868,1774036266010,-254.0,0.0001945,2]
[408639869,1774036266018,-151.0,0.00019452,2]
[408639870,1774036266029,-500.0,0.00019625,7]
[408639871,1774036266038,-222.54,0.00019646,2]
[408639872,1774036266048,-220.44,0.000197,7]
[408639873,1774036266058,-42344.06,0.000197,2]
[408639874,1774036266067,-2983.69,0.000197,2]
[408639875,1774036266077,-271.109682,0.00019726,2]
[408639876,1774036266087,-250.0,0.00019726,2]
[408639877,1774036266096,-2368.14,0.000198,2]
[408639878,1774036266105,-150.0,0.000198,2]
[408639879,1774036266114,-150.0,0.000198,2]
[408639880,1774036266124,-150.0,0.000198,2]
[408639881,1774036266133,-150.0,0.000198,2]
[408639882,1774036266142,-150.0,0.000198,2]
[408639883,1774036266152,-235.0,0.000198,2]
[408639884,1774036266161,-3000.0,0.00019874,3]
[408639885,1774036266171,-500.0,0.00019899,7]
[408639886,1774036266181,-4956.71632998,0.000199,3]
[408639887,1774036266190,-50147.61054817,0.000199,2]
[408639888,1774036266202,-937.48008137,0.0001995,15]
[408639889,1774036266212,-500.0,0.00019973,2]
[408639890,1774036266221,-150.0,0.00019973,2]
[408639891,1774036266231,-120022.39950654,0.0001998,2]
[408639892,1774036266241,-359.45646975,0.00019999,2]
[408639893,1774036266250,-1329.00977959,0.0002,3]
[408639894,1774036266259,-5077.31007192,0.0002,2]
[408639895,1774036266268,-182.0,0.0002,30]
[408639896,1774036266278,-62361.40382751,0.0002,30]
[408639897,1774036266287,-158.0,0.0002,13]
[408639898,1774036266296,-193.685058,0.0002,2]
[408639899,1774036266305,-45675.39468379,0.0002,2]
[408639900,1774036266315,-7032.11029982,0.0002,2]
[408639901,1774036266324,-1542.29548975,0.0002,2]
[408639902,1774036266334,-177.54405547,0.0002,2]
[408639903,1774036266343,-68803.69294781,0.0002,2]
[408639904,1774036266354,-25744.93505048,0.0002,2]
[408639905,1774036266364,-2464.68,0.0002,2]
[408639906,1774036266374,-3950.0,0.0002,2]
[408639907,1774036266384,-1302.03979529,0.0002,2]
[408639908,1774036266393,-132849.5240892,0.0002,2]
[408639909,1774036266402,-1051.07863079,0.0002,2]
[408639910,1774036266412,-2880.30526719,0.0002,2]
[408639911,1774036266421,-13000.11014836,0.0002,2]
[408639912,1774036266430,-152.0,0.0002,2]
[408639913,1774036266441,-1444.00162611,0.0002,2]
[408639914,1774036266450,-284.3469694,0.0002,2]
[408639915,1774036266459,-200.0,0.0002,10]
[408639916,1774036266469,-191.31,0.0002,2]
[408639917,1774036266479,-200.0,0.0002,2]
[408639918,1774036266488,-1000.0,0.0002,7]
[408639919,1774036266497,-802.28131912,0.0002,2]
[408639920,1774036266510,-800.0,0.00020014,7]
[408639921,1774036266521,-500.0,0.00020014,7]
[408639922,1774036266531,-300.0,0.000201,10]
[408639923,1774036266542,-486.51,0.00020187,2]
[408639924,1774036266551,-8313.75223495,0.00020236,11]
[408639925,1774036266561,-350.0,0.00020274,2]
[408639926,1774036266574,-500.0,0.00020288,7]
[408639927,1774036266584,-4353.52,0.000203,2]
[408639928,1774036266594,-150.0,0.00020439,2]
[408639929,1774036266603,-150.0,0.00020439,2]
[408639930,1774036266613,-150.0,0.00020439,2]
[408639931,1774036266622,-150.0,0.00020439,2]
[408639932,1774036266631,-150.0,0.00020439,2]
[408639933,1774036266641,-150.0,0.00020439,2]
[408639934,1774036266650,-590.1835,0.000205,2]
[408639935,1774036266659,-250.0,0.00020521,2]
[408639936,1774036266668,-179.16,0.00020529,2]
[408639937,1774036266678,-124690.86,0.00020532,2]
[408639938,1774036266687,-8688.38,0.00020532,2]
[408639939,1774036266697,-1686.71,0.00020532,2]
[408639940,1774036266706,-21662.87,0.00020548,2]
[408639941,1774036266716,-178.53,0.00020555,13]
[408639942,1774036266726,-178.54,0.00020555,13]
[408639943,1774036266736,-171.6925,0.00020555,13]
[408639944,1774036266745,-171.99,0.00020555,13]
[408639945,1774036266755,-171.99,0.00020555,13]
[408639946,1774036266764,-172.0,0.00020555,13]
[408639947,1774036266774,-250.0,0.0002057,2]
[408639948,1774036266784,-152.0,0.0002058,5]
[408639949,1774036266794,-154.59690885,0.0002058,5]
[408639950,1774036266804,-5946.68,0.000206,2]
[408639951,1774036266814,-22797.15542722,0.000207,2]
[408639952,1774036266823,-415.69,0.00020799,2]
[408639953,1774036266833,-1677.53,0.000208,2]
[408639954,1774036266843,-150.0,0.00020801,2]
[408639955,1774036266852,-450.0,0.00020822,2]
[408639956,1774036266861,-3513.0,0.00020883,2]
[408639957,1774036266871,-1044.0,0.00020883,2]
[408639958,1774036266881,-1260.0,0.00020883,2]
[408639959,1774036266891,-3759.0,0.00020883,2]
[408639960,1774036266901,-2465.0,0.00020883,2]
[408639961,1774036266910,-394290.14990342,0.000209,30]
[408639962,1774036266920,-232.0,0.000209,2]
[408639963,1774036266930,-503.0,0.00020996,8]
[408639964,1774036266939,-20000.0,0.00021,2]
[408639965,1774036266949,-1200.56354938,0.00021,2]
[408639966,1774036266959,-198.16300002,0.00021,2]
[408639967,1774036266968,-220.44,0.00021,7]
[408639968,1774036266978,-42344.06,0.00021,2]
[408639969,1774036266987,-400.0,0.00021,2]
[408639970,1774036266997,-2000.0,0.00021065,2]
[408639971,1774036267006,-12600.05,0.00021068,2]
[408639972,1774036267016,-350.0,0.00021068,2]
[408639973,1774036267026,-2368.14,0.000211,2]
[408639974,1774036267036,-2983.69,0.000211,2]
[408639975,1774036267045,-171.6925,0.00021103,13]
[408639976,1774036267055,-800.0,0.0002111,7]
[408639977,1774036267064,-500.0,0.0002111,7]
[408639978,1774036267074,-500.0,0.000213,2]
[408639979,1774036267084,-1500.0,0.000213,2]
[408639980,1774036267093,-500.0,0.000213,2]
[408639981,1774036267103,-700.0,0.000213,2]
[408639982,1774036267112,-500.0,0.000213,2]
[408639983,1774036267122,-226.7096319,0.000213,2]
[408639984,1774036267131,-700.0,0.000213,2]
[408639985,1774036267141,-500.0,0.000213,2]
[408639986,1774036267151,-700.0,0.000213,2]
[408639987,1774036267160,-500.0,0.000213,2]
[408639988,1774036267170,-700.0,0.000213,2]
[408639989,1774036267179,-500.0,0.000213,2]
[408639990,1774036267190,-700.0,0.000213,2]
[408639991,1774036267199,-700.0,0.000213,2]
[408639992,1774036267209,-700.0,0.000213,2]
[408639993,1774036267218,-700.0,0.000213,2]
[408639994,1774036267228,-1500.0,0.000213,2]
[408639995,1774036267237,-700.0,0.000213,2]
[408639996,1774036267246,-800.0,0.000213,2]
[408639997,1774036267256,-700.0,0.000213,2]
[408639998,1774036267266,-800.0,0.000213,2]
[408639999,1774036267276,-700.0,0.000213,2]
[408640000,1774036267285,-1500.0,0.000213,2]
[408640001,1774036267295,-700.0,0.000213,2]
[408640002,1774036267304,-500.0,0.000213,2]
[408640003,1774036267314,-800.0,0.000213,2]
[408640004,1774036267323,-700.0,0.000213,2]
[408640005,1774036267333,-1500.0,0.000213,2]
[408640006,1774036267343,-700.0,0.000213,2]
[408640007,1774036267353,-800.0,0.000213,2]
[408640008,1774036267362,-700.0,0.000213,2]
[408640009,1774036267373,-1500.0,0.000213,2]
[408640010,1774036267384,-700.0,0.000213,2]
[408640011,1774036267395,-800.0,0.000213,2]
[408640012,1774036267406,-700.0,0.000213,2]
[408640013,1774036267416,-700.0,0.000213,2]
[408640014,1774036267426,-500.0,0.000213,2]
[408640015,1774036267435,-1500.0,0.000213,2]
[408640016,1774036267445,-700.0,0.000213,2]
[408640017,1774036267454,-700.0,0.000213,2]
[408640018,1774036267464,-800.0,0.000213,2]
[408640019,1774036267474,-500.0,0.000213,2]
[408640020,1774036267483,-700.0,0.000213,2]
[408640021,1774036267493,-750.36817607,0.000213,2]
[408640022,1774036267504,-700.0,0.000213,2]
[408640023,1774036267518,-500.0,0.000213,2]
[408640024,1774036267528,-700.0,0.000213,2]
[408640025,1774036267538,-700.0,0.000213,2]
[408640026,1774036267547,-700.0,0.000213,2]
[408640027,1774036267557,-1100.0,0.000213,2]
[408640028,1774036267567,-700.0,0.000213,2]
[408640029,1774036267576,-1500.0,0.000213,2]
[408640030,1774036267585,-700.0,0.000213,2]
[408640031,1774036267595,-700.0,0.000213,2]
[408640032,1774036267605,-1100.0,0.000213,2]